fUSD/lending_fUSD_20251201
["ID","MTS","AMOUNT","RATE_DAILY","PERIOD"]
[395313049,1764609104234,-2806.55,0.0004,120]
[395313050,1764609104245,-2822.56,0.0004,120]
[395313051,1764609104256,-1261.08,0.0004,120]
[395313052,1764609104267,-2048.13791931,0.0004,30]
[395313053,1764609104278,-2000.0,0.0004,2]
[395313054,1764609104289,-19955.95,0.0004,120]
[395313055,1764609104299,-854.78,0.0004,120]
[395313056,1764609104310,-2858.69,0.0004,120]
[395313057,1764609104320,-1878.96,0.0004,120]
[395313058,1764609104330,-5820.14,0.0004,120]
[395313059,1764609104340,-2661.24,0.0004,120]
[395313060,1764609104350,-8826.9,0.0004,120]
[395313061,1764609104360,-9302.6,0.0004,120]
[395313062,1764609104370,-1075.1024165,0.0004,30]
[395313063,1764609104381,-427.65493559,0.0004,120]
[395313064,1764609104394,-1018.0073186,0.0004,30]
[395313065,1764609104403,-150.0,0.0004,60]
[395313066,1764609104413,-157.86,0.00040048,120]
[395313067,1764609104423,-3000.0,0.00040056,14]
[395313068,1764609104432,-781.14106,0.00040088,30]
[395313069,1764609104442,-479.82,0.00040137,2]
[395313070,1764609104452,-157.86,0.00040148,120]
[395313071,1764609104462,-700.0,0.00040188,14]
[395313072,1764609104472,-2100.0,0.00040188,14]
[395313073,1764609104482,-311.509,0.000402,120]
[395313074,1764609104491,-960.36,0.00040233,30]
[395313075,1764609104501,-960.36,0.00040233,30]
[395313076,1764609104511,-608.0,0.00040236,14]
[395313077,1764609104520,-157.86,0.00040248,120]
[395313078,1764609104529,-199.0,0.00040273,15]
[395313079,1764609104539,-1167.67,0.00040273,120]
[395313080,1764609104556,-781.14106,0.00040288,30]
[395313081,1764609104565,-2000.0,0.000403,120]
[395313082,1764609104575,-2053.0,0.000403,120]
[395313083,1764609104584,-157.86,0.00040348,120]
[395313084,1764609104594,-152.0,0.00040391,24]
[395313085,1764609104603,-567.11154566,0.000404,120]
[395313086,1764609104613,-157.86,0.00040448,120]
[395313087,1764609104622,-150.0,0.0004046,120]
[395313088,1764609104633,-150.0,0.00040461,120]
[395313089,1764609104642,-781.14106,0.00040488,30]
[395313090,1764609104652,-1000.0,0.000405,120]
[395313091,1764609104662,-1029.0258752,0.000405,120]
[395313092,1764609104671,-35278.0,0.000405,30]
[395313093,1764609104681,-2041.00288216,0.000405,120]
[395313094,1764609104691,-2000.0,0.000405,60]
[395313095,1764609104701,-1040.0,0.000405,120]
[395313096,1764609104710,-960.36,0.00040507,30]
[395313097,1764609104719,-960.36,0.00040507,30]
[395313098,1764609104728,-157.86,0.00040548,120]
[395313099,1764609104738,-150.0,0.00040559,120]
[395313100,1764609104747,-150.0,0.00040604,120]
[395313101,1764609104757,-608.0,0.00040647,14]
[395313102,1764609104767,-157.86,0.00040648,120]
[395313103,1764609104777,-1444.0,0.00040658,120]
[395313104,1764609104787,-592.78725744,0.00040678,120]
[395313105,1764609104796,-781.14106,0.00040688,30]
[395313106,1764609104806,-2000.0,0.000407,30]
[395313107,1764609104815,-2000.0,0.000407,30]
[395313108,1764609104825,-2000.0,0.000407,30]
[395313109,1764609104835,-2000.0,0.000407,30]
[395313110,1764609104844,-2000.0,0.000407,30]
[395313111,1764609104854,-2000.0,0.000407,30]
[395313112,1764609104863,-2000.0,0.000407,30]
[395313113,1764609104873,-1272.3834,0.000407,30]
[395313114,1764609104884,-278.84881719,0.000407,5]
[395313115,1764609104893,-5447.0,0.000407,117]
[395313116,1764609104903,-172.21746566,0.00040731,2]
[395313117,1764609104913,-157.86,0.00040748,120]
[395313118,1764609104923,-204.374378,0.0004078,120]
[395313119,1764609104933,-716.19814,0.00040791,2]
[395313120,1764609104942,-2490.45,0.000408,120]
[395313121,1764609104952,-592.78725744,0.00040814,120]
[395313122,1764609104962,-199.0,0.00040821,16]
[395313123,1764609104971,-172.21746566,0.00040831,2]
[395313124,1764609104980,-157.86,0.00040848,120]
[395313125,1764609104990,-766.91265355,0.0004088,120]
[395313126,1764609105000,-30000.0,0.00040883,120]
[395313127,1764609105010,-20000.0,0.00040883,120]
[395313128,1764609105019,-205.73,0.00040885,120]
[395313129,1764609105028,-2295.68,0.00040887,120]
[395313130,1764609105042,-781.14106,0.00040888,30]
[395313131,1764609105051,-393.7226375,0.000409,120]
[395313132,1764609105060,-2420.02378354,0.000409,120]
[395313133,1764609105070,-203.0,0.0004093,30]
[395313134,1764609105081,-172.21746566,0.00040931,2]
[395313135,1764609105090,-157.86,0.00040948,120]
[395313136,1764609105099,-1500.0,0.00040959,2]
[395313137,1764609105108,-1500.0,0.00040959,2]
[395313138,1764609105123,-1500.0,0.00040959,2]
[395313139,1764609105132,-1500.0,0.00040959,2]
[395313140,1764609105142,-1500.0,0.00040959,2]
[395313141,1764609105152,-1500.0,0.00040959,2]
[395313142,1764609105161,-1500.0,0.00040959,2]
[395313143,1764609105171,-1500.0,0.00040959,2]
[395313144,1764609105182,-1500.0,0.00040959,2]
[395313145,1764609105192,-1500.0,0.00040959,2]
[395313146,1764609105201,-1500.0,0.00040959,2]
[395313147,1764609105210,-1500.0,0.00040959,2]
[395313148,1764609105219,-1500.0,0.00040959,2]
[395313149,1764609105229,-1500.0,0.00040959,2]
[395313150,1764609105238,-1500.0,0.00040959,2]
[395313151,1764609105248,-1500.0,0.00040959,2]
[395313152,1764609105256,-1500.0,0.00040959,2]
[395313153,1764609105266,-1500.0,0.00040959,2]
[395313154,1764609105275,-1500.0,0.00040959,2]
[395313155,1764609105285,-1500.0,0.00040959,2]
[395313156,1764609105294,-1500.0,0.00040959,2]
[395313157,1764609105303,-1500.0,0.00040959,2]
[395313158,1764609105313,-1500.0,0.00040959,2]
[395313159,1764609105322,-1500.0,0.00040959,2]
[395313160,1764609105331,-1500.0,0.00040959,2]
[395313161,1764609105341,-1500.0,0.00040959,2]
[395313162,1764609105350,-1500.0,0.00040959,2]
[395313163,1764609105359,-1500.0,0.00040959,2]
[395313164,1764609105369,-1500.0,0.00040959,2]
[395313165,1764609105378,-1500.0,0.00040959,2]
[395313166,1764609105388,-1500.0,0.00040959,2]
[395313167,1764609105397,-1500.0,0.00040959,2]
[395313168,1764609105406,-1500.0,0.00040959,2]
[395313169,1764609105416,-1500.0,0.00040959,2]
[395313170,1764609105425,-1500.0,0.00040959,2]
[395313171,1764609105434,-1500.0,0.00040959,2]
[395313172,1764609105443,-1500.0,0.00040959,2]
[395313173,1764609105452,-1500.0,0.00040959,2]
[395313174,1764609105461,-1500.0,0.00040959,2]
[395313175,1764609105471,-1500.0,0.00040959,2]
[395313176,1764609105480,-1500.0,0.00040959,2]
[395313177,1764609105489,-1500.0,0.00040959,2]
[395313178,1764609105499,-1500.0,0.00040959,2]
[395313179,1764609105508,-1500.0,0.00040959,2]
[395313180,1764609105517,-1500.0,0.00040959,2]
[395313181,1764609105526,-1500.0,0.00040959,2]
[395313182,1764609105535,-1500.0,0.00040959,2]
[395313183,1764609105545,-1500.0,0.00040959,2]
[395313184,1764609105554,-1500.0,0.00040959,2]
[395313185,1764609105563,-1500.0,0.00040959,2]
[395313186,1764609105572,-1500.0,0.00040959,2]
[395313187,1764609105581,-1500.0,0.00040959,2]
[395313188,1764609105591,-1500.0,0.00040959,2]
[395313189,1764609105600,-1500.0,0.00040959,2]
[395313190,1764609105609,-1500.0,0.00040959,2]
[395313191,1764609105618,-1500.0,0.00040959,2]
[395313192,1764609105627,-1500.0,0.00040959,2]
[395313193,1764609105636,-1500.0,0.00040959,2]
[395313194,1764609105646,-1500.0,0.00040959,2]
[395313195,1764609105655,-1500.0,0.00040959,2]
[395313196,1764609105664,-1328.2961212,0.00040959,2]
[395313197,1764609105674,-150.0,0.00040965,120]
[395313198,1764609105683,-800.0,0.0004098,30]
[395313199,1764609105694,-800.0,0.0004098,30]
[395313200,1764609105703,-800.0,0.0004098,30]
[395313201,1764609105712,-800.0,0.0004098,30]
[395313202,1764609105721,-800.0,0.0004098,30]
[395313203,1764609105730,-800.0,0.0004098,30]
[395313204,1764609105740,-800.0,0.0004098,30]
[395313205,1764609105749,-800.0,0.0004098,30]
[395313206,1764609105758,-800.0,0.0004098,30]
[395313207,1764609105767,-800.0,0.0004098,30]
[395313208,1764609105776,-9980.23441456,0.00040982,120]
[395313209,1764609105786,-151.0,0.00040997,14]
[395313210,1764609105796,-509.39630906,0.00040998,120]
[395313211,1764609105805,-1361.49,0.00040999,120]
[395313212,1764609105815,-1361.49,0.00040999,120]
[395313213,1764609105826,-1361.49,0.00040999,120]
[395313214,1764609105836,-1361.49,0.00040999,120]
[395313215,1764609105845,-1361.49,0.00040999,120]
[395313216,1764609105854,-1361.49,0.00040999,120]
[395313217,1764609105864,-1361.49,0.00040999,120]
[395313218,1764609105873,-1361.49,0.00040999,120]
[395313219,1764609105882,-1361.49,0.00040999,120]
[395313220,1764609105893,-1361.49,0.00040999,120]
[395313221,1764609105903,-1361.49,0.00040999,120]
[395313222,1764609105913,-1361.49,0.00040999,120]
[395313223,1764609105922,-1361.49,0.00040999,120]
[395313224,1764609105931,-1361.49,0.00040999,120]
[395313225,1764609105941,-1361.49,0.00040999,120]
[395313226,1764609105951,-1361.49,0.00040999,120]
[395313227,1764609105960,-1361.49,0.00040999,120]
[395313228,1764609105970,-1361.49,0.00040999,120]
[395313229,1764609105979,-1361.49,0.00040999,120]
[395313230,1764609105988,-1361.49,0.00040999,120]
[395313231,1764609105998,-1361.49,0.00040999,120]
[395313232,1764609106008,-1361.49,0.00040999,120]
[395313233,1764609106018,-1361.49,0.00040999,120]
[395313234,1764609106027,-1361.50473629,0.00040999,120]
[395313235,1764609106037,-50000.0,0.00041,41]
[395313236,1764609106057,-50000.0,0.00041,31]
[395313237,1764609106066,-50000.0,0.00041,21]
[395313238,1764609106076,-980.27510319,0.00041,2]
[395313239,1764609106086,-2504.19312224,0.00041,30]
[395313240,1764609106097,-1000.0,0.00041,120]
[395313241,1764609106108,-3928.44348774,0.00041,30]
[395313242,1764609106119,-2399.0330081,0.00041,120]
[395313243,1764609106128,-152.0,0.00041,30]
[395313244,1764609106139,-2736.41221167,0.00041,30]
[395313245,1764609106149,-10302.20382365,0.00041,30]
[395313246,1764609106158,-151.0,0.00041,120]
[395313247,1764609106168,-1000.0,0.00041,120]
[395313248,1764609106177,-589.73074958,0.00041,30]
[395313249,1764609106186,-150.74872316,0.00041,3]
[395313250,1764609106196,-500.0,0.00041,30]
[395313251,1764609106206,-3022.0,0.00041,120]
[395313252,1764609106216,-50977.49184469,0.00041,30]
[395313253,1764609106226,-2319.45,0.00041,120]
[395313254,1764609106236,-569.37895661,0.00041,30]
[395313255,1764609106246,-1500.0,0.00041,30]
[395313256,1764609106255,-1433.4016856,0.00041,120]
[395313257,1764609106264,-4290.0,0.00041,120]
[395313258,1764609106274,-153.32,0.00041,3]
[395313259,1764609106283,-479.41174601,0.00041,120]
[395313260,1764609106293,-1389.1516177,0.00041,120]
[395313261,1764609106302,-9993.9,0.00041,14]
[395313262,1764609106312,-2586.20643225,0.00041,120]
[395313263,1764609106322,-1000.0,0.00041,120]
[395313264,1764609106332,-1110.336029,0.00041,120]
[395313265,1764609106341,-168.0,0.00041,30]
[395313266,1764609106351,-1365.0,0.00041,30]
[395313267,1764609106360,-1000.0,0.00041,120]
[395313268,1764609106370,-280.0,0.00041,30]
[395313269,1764609106379,-10509.74,0.00041,30]
[395313270,1764609106389,-1000.0,0.00041,120]
[395313271,1764609106399,-1000.0,0.00041,120]
[395313272,1764609106408,-1000.0,0.00041,120]
[395313273,1764609106418,-1000.0,0.00041,120]
[395313274,1764609106428,-1000.0,0.00041,120]
[395313275,1764609106437,-1000.0,0.00041,120]
[395313276,1764609106446,-1000.0,0.00041,120]
[395313277,1764609106456,-1000.0,0.00041,120]
[395313278,1764609106465,-1000.0,0.00041,120]
[395313279,1764609106474,-1000.0,0.00041,120]
[395313280,1764609106483,-1000.0,0.00041,120]
[395313281,1764609106493,-1000.0,0.00041,120]
[395313282,1764609106503,-1000.0,0.00041,120]
[395313283,1764609106512,-1000.0,0.00041,120]
[395313284,1764609106521,-1000.0,0.00041,120]
[395313285,1764609106531,-1000.0,0.00041,120]
[395313286,1764609106540,-1000.0,0.00041,120]
[395313287,1764609106550,-1000.0,0.00041,120]
[395313288,1764609106560,-1000.0,0.00041,120]
[395313289,1764609106571,-1000.0,0.00041,120]
[395313290,1764609106584,-1000.0,0.00041,120]
[395313291,1764609106594,-1000.0,0.00041,120]
[395313292,1764609106604,-1000.0,0.00041,120]
[395313293,1764609106614,-1000.0,0.00041,120]
[395313294,1764609106624,-1000.0,0.00041,120]
[395313295,1764609106635,-1000.0,0.00041,120]
[395313296,1764609106646,-1000.0,0.00041,120]
[395313297,1764609106656,-1000.0,0.00041,120]
[395313298,1764609106667,-1000.0,0.00041,120]
[395313299,1764609106676,-1000.0,0.00041,120]
[395313300,1764609106686,-1000.0,0.00041,120]
[395313301,1764609106696,-1000.0,0.00041,120]
[395313302,1764609106706,-1000.0,0.00041,120]
[395313303,1764609106715,-1000.0,0.00041,120]
[395313304,1764609106725,-1000.0,0.00041,120]
[395313305,1764609106734,-1000.0,0.00041,120]
[395313306,1764609106743,-1000.0,0.00041,120]
[395313307,1764609106752,-1000.0,0.00041,120]
[395313308,1764609106762,-1000.0,0.00041,120]
[395313309,1764609106771,-1000.0,0.00041,120]
[395313310,1764609106780,-1000.0,0.00041,120]
[395313311,1764609106789,-1000.0,0.00041,120]
[395313312,1764609106799,-1000.0,0.00041,120]
[395313313,1764609106808,-1000.0,0.00041,120]
[395313314,1764609106817,-1000.0,0.00041,120]
[395313315,1764609106827,-1000.0,0.00041,120]
[395313316,1764609106836,-1000.0,0.00041,120]
[395313317,1764609106845,-1000.0,0.00041,120]
[395313318,1764609106854,-1000.0,0.00041,120]
[395313319,1764609106864,-1000.0,0.00041,120]
[395313320,1764609106873,-1000.0,0.00041,120]
[395313321,1764609106882,-1000.0,0.00041,120]
[395313322,1764609106894,-1000.0,0.00041,120]
[395313323,1764609106903,-1000.0,0.00041,120]
[395313324,1764609106913,-1000.0,0.00041,120]
[395313325,1764609106922,-1000.0,0.00041,120]
[395313326,1764609106932,-1017.0,0.00041,30]
[395313327,1764609106941,-150.0,0.00041,60]
[395313328,1764609106951,-700.0,0.0004101,14]
[395313329,1764609106960,-2100.0,0.0004101,14]
[395313330,1764609106969,-150.0,0.00041023,120]
[395313331,1764609106979,-172.21746566,0.00041031,2]
[395313332,1764609106988,-150.0,0.00041039,120]
[395313333,1764609106999,-1342.9,0.00041041,7]
[395313334,1764609107009,-157.86,0.00041048,120]
[395313335,1764609107018,-213.43630282,0.00041055,120]
[395313336,1764609107028,-608.0,0.00041058,14]
[395313337,1764609107040,-153.47,0.00041072,120]
[395313338,1764609107058,-162.24,0.00041072,120]
[395313339,1764609107067,-152.31949556,0.00041077,120]
[395313340,1764609107079,-152.0,0.00041078,25]
[395313341,1764609107089,-187.87853326,0.0004108,2]
[395313342,1764609107098,-781.14106,0.00041088,30]
[395313343,1764609107108,-654.27,0.00041095,10]
[395313344,1764609107119,-1167.67,0.00041095,120]
[395313345,1764609107130,-755.59,0.00041096,120]
[395313346,1764609107141,-3427.89,0.00041096,120]
[395313347,1764609107150,-600.0,0.00041096,30]
[395313348,1764609107402,-350.0,0.00041096,10]
[395313349,1764609107412,-1100.0,0.00041096,120]
[395313350,1764609107422,-865.0,0.00041096,30]
[395313351,1764609107431,-865.0,0.00041096,30]
[395313352,1764609107440,-3479.58740825,0.00041098,13]
[395313353,1764609107450,-3479.58740825,0.00041098,13]
[395313354,1764609107459,-3479.58740825,0.00041098,13]
[395313355,1764609107469,-360.0,0.000411,120]
[395313356,1764609107478,-500.0,0.000411,2]
[395313357,1764609107488,-500.0,0.000411,60]
[395313358,1764609107497,-518.10579709,0.000411,30]
[395313359,1764609107507,-1200.0,0.000411,2]
[395313360,1764609107516,-150.0,0.00041119,120]
[395313361,1764609107526,-172.21746566,0.00041131,2]
[395313362,1764609107535,-150.0,0.00041144,120]
[395313363,1764609107544,-157.86,0.00041148,120]
[395313364,1764609107553,-153.47,0.00041172,120]
[395313365,1764609107562,-162.24,0.00041172,120]
[395313366,1764609107571,-187.87853326,0.0004118,2]
[395313367,1764609107580,-2181.21233151,0.0004123,5]
[395313368,1764609107590,-172.21746566,0.00041231,2]
[395313369,1764609107599,-865.0,0.00041233,30]
[395313370,1764609107608,-865.0,0.00041233,30]
[395313371,1764609107618,-157.86,0.00041248,120]
[395313372,1764609107627,-6911.10840627,0.00041261,120]
[395313373,1764609107636,-153.47,0.00041272,120]
[395313374,1764609107647,-162.24,0.00041272,120]
[395313375,1764609107656,-187.87853326,0.0004128,2]
[395313376,1764609107665,-781.14106,0.00041288,30]
[395313377,1764609107675,-150.0,0.00041303,120]
[395313378,1764609107684,-150.0,0.00041305,30]
[395313379,1764609107693,-632.70942282,0.00041305,30]
[395313380,1764609107703,-150.0,0.00041305,30]
[395313381,1764609107712,-1026.55482584,0.00041305,30]
[395313382,1764609107721,-150.0,0.00041305,30]
[395313383,1764609107731,-1648.15262782,0.00041305,30]
[395313384,1764609107741,-150.0,0.00041305,30]
[395313385,1764609107751,-906.62748039,0.00041305,30]
[395313386,1764609107759,-172.21746566,0.00041331,2]
[395313387,1764609107769,-213.0,0.00041333,30]
[395313388,1764609107779,-157.86,0.00041348,120]
[395313389,1764609107788,-654.27,0.00041369,10]
[395313390,1764609107798,-199.0,0.00041369,17]
[395313391,1764609107807,-865.0,0.0004137,30]
[395313392,1764609107817,-865.0,0.0004137,30]
[395313393,1764609107827,-153.47,0.00041372,120]
[395313394,1764609107836,-162.24,0.00041372,120]
[395313395,1764609107846,-187.87853326,0.0004138,2]
[395313396,1764609107855,-200.0,0.000414,120]
[395313397,1764609107865,-1672.51790515,0.0004142,120]
[395313398,1764609107874,-172.21746566,0.00041431,2]
[395313399,1764609107884,-150.0,0.0004144,120]
[395313400,1764609107893,-157.86,0.00041448,120]
[395313401,1764609107903,-150.0,0.0004146,120]
[395313402,1764609107912,-150.0,0.00041464,120]
[395313403,1764609107922,-608.0,0.00041468,30]
[395313404,1764609107931,-153.47,0.00041472,120]
[395313405,1764609107940,-162.24,0.00041472,120]
[395313406,1764609107949,-187.87853326,0.0004148,2]
[395313407,1764609107958,-1598.789,0.00041481,2]
[395313408,1764609107967,-1258.0,0.00041481,2]
[395313409,1764609107977,-3700.084,0.00041481,2]
[395313410,1764609107987,-781.14106,0.00041488,30]
[395313411,1764609107996,-1000.0,0.000415,120]
[395313412,1764609108007,-514.07,0.000415,30]
[395313413,1764609108017,-2837.0,0.000415,120]
[395313414,1764609108027,-5054.14394723,0.000415,120]
[395313415,1764609108037,-865.0,0.00041507,30]
[395313416,1764609108050,-865.0,0.00041507,30]
[395313417,1764609108059,-172.21746566,0.00041531,2]
[395313418,1764609108069,-324.0,0.00041538,2]
[395313419,1764609108079,-157.86,0.00041548,120]
[395313420,1764609108090,-150.0,0.00041555,60]
[395313421,1764609108100,-153.47,0.00041572,120]
[395313422,1764609108112,-162.24,0.00041572,120]
[395313423,1764609108124,-2361.09683384,0.000416,120]
[395313424,1764609108135,-172.21746566,0.00041631,2]
[395313425,1764609108146,-654.27,0.00041643,10]
[395313426,1764609108156,-500.0,0.00041643,120]
[395313427,1764609108166,-500.0,0.00041643,120]
[395313428,1764609108176,-500.0,0.00041643,120]
[395313429,1764609108190,-500.0,0.00041643,120]
[395313430,1764609108200,-467.53479429,0.00041643,120]
[395313431,1764609108209,-500.29920022,0.00041643,120]
[395313432,1764609108219,-865.0,0.00041644,30]
[395313433,1764609108228,-865.0,0.00041644,30]
[395313434,1764609108238,-157.86,0.00041648,120]
[395313435,1764609108247,-1417.61525462,0.00041655,30]
[395313436,1764609108256,-153.47,0.00041672,120]
[395313437,1764609108266,-162.24,0.00041672,120]
[395313438,1764609108275,-1500.45769828,0.00041685,120]
[395313439,1764609108285,-781.14106,0.00041688,30]
[395313440,1764609108295,-953.29831699,0.00041695,7]
[395313441,1764609108304,-3000.0,0.000417,60]
[395313442,1764609108313,-759.01,0.000417,20]
[395313443,1764609108323,-172.21746566,0.00041731,2]
[395313444,1764609108333,-150.0,0.00041731,120]
[395313445,1764609108343,-157.86,0.00041748,120]
[395313446,1764609108353,-152.0,0.00041766,26]
[395313447,1764609108363,-153.47,0.00041772,120]
[395313448,1764609108373,-162.24,0.00041772,120]
[395313449,1764609108382,-500.0,0.0004178,120]
[395313450,1764609108394,-500.0,0.0004178,120]
[395313451,1764609108404,-558.37666035,0.0004178,120]
[395313452,1764609108415,-500.0,0.0004178,120]
[395313453,1764609108425,-500.0,0.0004178,120]
[395313454,1764609108435,-500.0,0.0004178,120]
[395313455,1764609108445,-865.0,0.00041781,30]
[395313456,1764609108455,-865.0,0.00041781,30]
[395313457,1764609108464,-200.0,0.00041788,120]
[395313458,1764609108474,-3047.72930917,0.00041798,2]
[395313459,1764609108484,-451.22789896,0.000418,120]
[395313460,1764609108494,-500.0,0.000418,22]
[395313461,1764609108503,-2877.26920076,0.000418,120]
[395313462,1764609108513,-700.0,0.00041832,60]
[395313463,1764609108523,-2100.0,0.00041832,60]
[395313464,1764609108532,-210.42151546,0.00041838,120]
[395313465,1764609108542,-214.28835431,0.00041838,120]
[395313466,1764609108552,-207.08003796,0.00041838,120]
[395313467,1764609108561,-216.23573793,0.00041838,120]
[395313468,1764609108571,-214.07197836,0.00041838,120]
[395313469,1764609108580,-157.86,0.00041848,120]
[395313470,1764609108591,-1665.53035674,0.00041869,30]
[395313471,1764609108600,-10000.0,0.0004187,2]
[395313472,1764609108610,-153.47,0.00041872,120]
[395313473,1764609108620,-162.24,0.00041872,120]
[395313474,1764609108630,-608.0,0.00041879,30]
[395313475,1764609108639,-450.0,0.0004188,12]
[395313476,1764609108649,-1000.0,0.0004188,120]
[395313477,1764609108658,-781.14106,0.00041888,30]
[395313478,1764609108667,-810782.8231,0.00041889,30]
[395313479,1764609108677,-2000.0,0.00041895,3]
[395313480,1764609108686,-2000.0,0.00041895,3]
[395313481,1764609108696,-1114.2442,0.00041895,3]
[395313482,1764609108706,-2000.0,0.00041895,3]
[395313483,1764609108715,-2000.0,0.00041895,3]
[395313484,1764609108725,-2000.0,0.00041895,3]
[395313485,1764609108735,-50000.0,0.000419,42]
[395313486,1764609108744,-50000.0,0.000419,32]
[395313487,1764609108754,-26000.0,0.000419,120]
[395313488,1764609108763,-1767.77505043,0.000419,2]
[395313489,1764609108773,-150.0,0.00041915,120]
[395313490,1764609108782,-654.5039445,0.00041917,10]
[395313491,1764609108792,-199.0,0.00041917,18]
[395313492,1764609108801,-1167.67,0.00041917,120]
[395313493,1764609108811,-865.0,0.00041918,30]
[395313494,1764609108821,-865.0,0.00041918,30]
[395313495,1764609108831,-151.0,0.00041927,14]
[395313496,1764609108840,-151.0,0.00041927,14]
[395313497,1764609108850,-151.0,0.00041927,14]
[395313498,1764609108859,-151.0,0.00041927,14]
[395313499,1764609108869,-177.29196617,0.00041927,14]
[395313500,1764609108878,-4000000.0,0.0004193,120]
[395313501,1764609108888,-4000000.0,0.0004193,120]
[395313502,1764609108898,-4000000.0,0.0004193,120]
[395313503,1764609108909,-150.0,0.00041939,120]
[395313504,1764609108919,-252.87597088,0.00041945,120]
[395313505,1764609108929,-157.86,0.00041948,120]
[395313506,1764609108939,-1313.576,0.00041965,2]
[395313507,1764609108949,-153.47,0.00041972,120]
[395313508,1764609108959,-162.24,0.00041972,120]
[395313509,1764609108969,-1000.0,0.0004199,60]
[395313510,1764609108979,-1000.0,0.0004199,60]
[395313511,1764609108988,-1000.0,0.0004199,60]
[395313512,1764609108998,-1000.0,0.0004199,60]
[395313513,1764609109007,-1000.0,0.0004199,60]
[395313514,1764609109017,-3479.58740825,0.00041998,14]
[395313515,1764609109027,-1529.58534839,0.00041998,120]
[395313516,1764609109039,-743.01921893,0.00041999,120]
[395313517,1764609109049,-1000.0,0.00041999,120]
[395313518,1764609109059,-50000.0,0.00042,42]
[395313519,1764609109068,-50000.0,0.00042,32]
[395313520,1764609109079,-634.12664738,0.00042,15]
[395313521,1764609109088,-430.28763664,0.00042,120]
[395313522,1764609109098,-1000.0,0.00042,120]
[395313523,1764609109108,-1326.0,0.00042,120]
[395313524,1764609109119,-1820.15753436,0.00042,120]
[395313525,1764609109129,-173.31324852,0.00042,30]
[395313526,1764609109139,-3200.13410043,0.00042,120]
[395313527,1764609109148,-400.0,0.00042,120]
[395313528,1764609109157,-800.0,0.00042,120]
[395313529,1764609109168,-350.0,0.00042,120]
[395313530,1764609109178,-1006.0,0.00042,120]
[395313531,1764609109187,-500.0,0.00042,120]
[395313532,1764609109196,-1000.0,0.00042,120]
[395313533,1764609109206,-1686.0,0.00042,60]
[395313534,1764609109215,-1500.0,0.00042,30]
[395313535,1764609109225,-176.24576223,0.00042,120]
[395313536,1764609109236,-92916.1251394,0.00042,120]
[395313537,1764609109246,-6577.52610056,0.00042,120]
[395313538,1764609109255,-500.0,0.00042,120]
[395313539,1764609109265,-500.0,0.00042,120]
[395313540,1764609109274,-66063.703845,0.00042,120]
[395313541,1764609109284,-1210.00191391,0.00042,120]
[395313542,1764609109293,-202.04563503,0.00042,120]
[395313543,1764609109302,-1000.0,0.00042,120]
[395313544,1764609109312,-171.0748616,0.00042,60]
[395313545,1764609109321,-36423.49400393,0.00042,7]
[395313546,1764609109331,-2804.89286402,0.00042,5]
[395313547,1764609109340,-486.71,0.00042,14]
[395313548,1764609109350,-737.17898783,0.00042,120]